bitfinex/quotes_SOLUSD_20240626
["timestamp","ask_amount","ask_price","bid_price","bid_amount"]
[1719414506160,7.2638,137.67,137.62,7.266]
[1719414506366,23.65746774,137.72,137.61,15.4917]
[1719414506531,0.17,137.71,137.61,15.4917]
[1719414506848,7.264,137.67,137.62,25.4309]
[1719414507024,18.1568,137.69,137.61,15.4917]
[1719414507229,18.1568,137.69,137.59,18.1689]
[1719414507553,7.265,137.65,137.6,7.2674]
[1719414507750,0.17,137.68,137.58,15.4917]
[1719414507937,18.1622,137.65,137.58,15.4917]
[1719414508123,18.1622,137.65,137.57,6.276]
[1719414508336,7.2672,137.61,137.57,6.276]
[1719414508641,7.2665,137.62,137.57,6.276]
[1719414509064,7.2665,137.62,137.57,13.545]
[1719414509620,7.267,137.61,137.57,6.276]
[1719414509841,7.267,137.61,137.54,15.4917]
[1719414509842,7.2677,137.6,137.55,7.2697]
[1719414510029,4.17463864,137.64,137.55,7.2697]
[1719414510232,7.2669,137.61,137.54,21.6972]
[1719414510464,0.17,137.63,137.54,6.2055]
[1719414510758,7.2686,137.58,137.54,6.2055]
[1719414511451,7.2686,137.58,137.53,7.271]
[1719414511753,7.2686,137.58,137.52,25.4496]
[1719414511954,7.2698,137.56,137.5,22.1131]
[1719414512325,7.2691,137.57,137.51,7.2718]
[1719414512527,7.2691,137.57,137.5,22.1131]
[1719414512528,7.2695,137.56,137.5,22.1131]
[1719414512852,7.2695,137.56,137.51,7.2718]
[1719414513632,7.2702,137.55,137.5,6.3697]
[1719414514046,7.2702,137.55,137.5,13.6423]
[1719414514263,7.2696,137.56,137.51,7.2721]
[1719414514626,7.2696,137.56,137.5,13.6422]
[1719414514827,23.61581383,137.58,137.5,6.3697]
[1719414515040,18.5133,137.57,137.47,6.2491]
[1719414515247,22.68793864,137.57,137.48,18.1841]
[1719414515929,7.2712,137.53,137.48,18.1841]
[1719414516646,7.2712,137.53,137.48,25.4577]
[1719414517044,7.2712,137.53,137.48,18.1841]
[1719414517245,7.2712,137.53,137.48,25.4578]
[1719414518367,7.2706,137.54,137.49,7.273]
[1719414519066,22.68793864,137.57,137.5,7.2725]
[1719414519067,7.27,137.55,137.5,7.2725]
[1719414521844,7.2706,137.54,137.49,7.273]
[1719414522066,7.2711,137.53,137.48,25.4576]
[1719414524069,7.2716,137.52,137.48,18.1841]
[1719414525872,7.2713,137.53,137.48,25.4578]
[1719414526454,28.5133945,137.57,137.48,18.1841]
[1719414526841,7.2705,137.55,137.5,7.2727]
[1719414527453,7.2707,137.54,137.49,7.2731]
[1719414528042,7.2711,137.53,137.49,7.2731]
[1719414528239,7.2711,137.53,137.48,25.4576]
[1719414528444,28.5133945,137.57,137.48,18.1841]
[1719414528648,7.2717,137.52,137.48,18.1841]
[1719414528953,0.17,137.56,137.48,18.1841]
[1719414529155,4.17463864,137.57,137.5,18.1813]
[1719414529366,7.2703,137.55,137.5,25.4537]
[1719414530849,11.44403864,137.57,137.52,7.2715]
[1719414531042,4.17463864,137.57,137.53,7.271]
[1719414531360,4.17463864,137.57,137.5,18.1817]
[1719414531552,4.17463864,137.57,137.52,7.2716]
[1719414531861,7.2697,137.56,137.51,25.4513]
[1719414532062,16.0635,137.58,137.51,25.4513]
[1719414532063,7.2692,137.57,137.52,7.2716]
[1719414533361,34.2348,137.58,137.48,18.1832]
[1719414533664,18.1769,137.54,137.47,6.2491]
[1719414533857,7.2713,137.53,137.48,7.2735]
[1719414534061,7.2713,137.53,137.47,6.2491]
[1719414534243,7.2713,137.53,137.48,7.2736]
[1719414535467,18.1739,137.56,137.49,7.2732]
[1719414535468,7.2708,137.54,137.49,7.2732]
[1719414536859,7.2711,137.53,137.48,25.4579]
[1719414538268,7.2706,137.54,137.49,7.2732]
[1719414538467,4.51463864,137.57,137.48,18.1844]
[1719414538849,7.2703,137.55,137.5,7.2726]
[1719414539057,7.2713,137.53,137.48,25.4581]
[1719414539365,7.2711,137.53,137.48,25.4576]
[1719414539568,7.2706,137.54,137.49,7.273]
[1719414542080,7.2711,137.53,137.48,25.458]
[1719414542254,7.2707,137.54,137.49,7.2731]
[1719414542462,7.2711,137.53,137.48,25.4581]
[1719414542647,7.2707,137.54,137.49,7.2729]
[1719414542850,7.2702,137.55,137.5,7.2725]
[1719414544892,7.2706,137.54,137.49,7.273]
[1719414545763,7.2718,137.52,137.48,18.1844]
[1719414546062,7.2718,137.52,137.47,13.5233]
[1719414546574,7.2728,137.5,137.47,6.2491]
[1719414547350,7.2728,137.5,137.46,16.0908344]
[1719414547757,18.1778,137.53,137.46,0.8657344]
[1719414547978,7.2729,137.5,137.46,0.8657344]
[1719414548584,15.1209,137.51,137.46,0.8657344]
[1719414548878,7.2739,137.48,137.46,0.8657344]
[1719414549258,15.1209,137.51,137.46,0.8657344]
[1719414549259,7.2734,137.49,137.46,0.8657344]
[1719414550153,7.274,137.48,137.46,0.8657344]
[1719414551568,37.2743,137.47,137.46,0.8657344]
[1719414552280,7.2764,137.43,137.4,6.2634]
[1719414552461,7.2771,137.42,137.39,15.0914]
[1719414552649,7.2766,137.43,137.37,13.6602]
[1719414552973,18.1886,137.45,137.37,6.3807]
[1719414553170,7.2764,137.44,137.38,7.2786]
[1719414554070,7.2764,137.44,137.39,7.2783]
[1719414554249,7.2768,137.43,137.38,18.197]
[1719414554649,7.2768,137.43,137.38,25.4759]
[1719414554975,7.2768,137.43,137.38,18.197]
[1719414556177,30.0,137.47,137.41,7.277]
[1719414556375,30.0,137.47,137.42,7.2768]
[1719414556560,30.0,137.43,137.41,7.2772]
[1719414556876,30.0,137.43,137.4,25.4719]
[1719414557067,7.2744,137.47,137.41,7.2774]
[1719414557272,7.2744,137.47,137.41,7.2772]
[1719414557478,7.2748,137.46,137.41,7.2772]
[1719414557670,23.81174719,137.49,137.4,25.4718]
[1719414557856,7.275,137.46,137.41,7.2774]
[1719414558056,7.2745,137.47,137.42,7.2768]
[1719414558458,11.44803864,137.49,137.44,7.2755]
[1719414558658,11.44803864,137.49,137.42,25.4675]
[1719414558659,7.2739,137.48,137.42,25.4675]
[1719414558862,4.17463864,137.49,137.39,18.1951]
[1719414559077,7.2754,137.45,137.39,18.1951]
[1719414559374,18.1859,137.47,137.39,25.4733]
[1719414559591,7.2759,137.44,137.39,25.4733]
[1719414559758,7.2755,137.45,137.39,25.4733]
[1719414559960,7.2755,137.45,137.4,7.2779]
[1719414561094,7.2762,137.44,137.39,18.1951]
[1719414561768,7.2762,137.44,137.39,25.4735]
[1719414561972,7.2755,137.45,137.39,25.4735]
[1719414562276,7.2759,137.44,137.39,18.1951]
[1719414563674,7.2764,137.43,137.39,18.1951]
[1719414563873,7.2762,137.44,137.39,18.1951]
[1719414564071,7.2762,137.44,137.39,25.4734]
[1719414564680,7.2771,137.42,137.37,13.8391]
[1719414564867,7.2766,137.43,137.38,7.2789]
[1719414565267,7.2772,137.42,137.37,13.8395]
[1719414565670,15.4071,137.46,137.38,18.1974]
[1719414565671,15.2371,137.46,137.38,18.1974]
[1719414565864,0.34,137.45,137.38,18.1974]
[1719414566180,7.2766,137.43,137.38,25.4763]
[1719414566769,7.2766,137.43,137.38,18.1974]
[1719414566982,7.277,137.42,137.38,18.1974]
[1719414567917,7.2765,137.43,137.38,25.4761]
[1719414568095,7.277,137.42,137.37,13.8394]
[1719414568391,7.2766,137.43,137.37,13.8394]
[1719414568580,7.2766,137.43,137.38,7.2789]
[1719414568767,7.2766,137.43,137.37,6.56]
[1719414568974,7.2766,137.43,137.38,7.279]
[1719414569169,7.2761,137.44,137.38,25.4765]
[1719414569390,19.41173864,137.46,137.38,18.1975]
[1719414569996,7.2759,137.44,137.39,7.2782]
[1719414570474,7.2764,137.43,137.38,25.4764]
[1719414570993,7.2769,137.42,137.38,18.1975]
[1719414571588,7.2769,137.42,137.37,13.8394]
[1719414571589,7.2775,137.41,137.37,6.56]
[1719414571977,7.2771,137.42,137.37,13.8394]
[1719414572887,37.59883864,137.46,137.38,18.1974]
[1719414573093,7.2762,137.44,137.39,7.2782]
[1719414573291,7.2764,137.43,137.38,25.4762]
[1719414573885,7.277,137.42,137.38,18.1974]
[1719414575717,7.2765,137.43,137.38,25.4763]
[1719414576808,34.017,137.42,137.38,18.1974]
[1719414577181,26.74,137.42,137.38,25.4764]
[1719414578005,26.74,137.42,137.38,18.1974]
[1719414578194,34.0169,137.42,137.38,18.1974]
[1719414578800,7.2769,137.42,137.38,18.1974]
[1719414579009,7.2766,137.43,137.38,25.4764]
[1719414581591,7.277,137.42,137.38,18.1974]
[1719414582380,0.17,137.44,137.38,25.4763]
[1719414582381,7.2765,137.43,137.38,25.4763]
[1719414582800,0.17,137.44,137.37,13.8395]
[1719414583004,7.2771,137.42,137.37,13.8395]
[1719414583402,7.2766,137.43,137.38,7.279]
[1719414583707,7.2771,137.42,137.37,13.8394]
[1719414584180,0.17,137.44,137.34,24.5354]
[1719414584515,34.0188,137.39,137.34,31.8162]
[1719414584808,26.74,137.39,137.34,31.8162]
[1719414584985,7.2782,137.4,137.35,7.2805]
[1719414585183,22.36693864,137.43,137.34,51.2754]
[1719414585384,0.34,137.42,137.34,51.2754]
[1719414585598,0.34,137.42,137.34,33.0725]
[1719414585791,7.2792,137.38,137.34,6.3325]
[1719414586215,26.74,137.37,137.34,6.3325]
[1719414587787,26.74,137.37,137.34,13.6136]
[1719414588394,4.17463864,137.41,137.34,13.6135]
[1719414588682,7.2786,137.39,137.34,13.6135]
[1719414589107,7.2786,137.39,137.35,7.2806]
[1719414589407,7.2786,137.39,137.34,13.6135]
[1719414591105,7.2785,137.4,137.35,25.4819]
[1719414591296,7.2785,137.39,137.35,18.2015]
[1719414591906,7.2782,137.4,137.35,25.4819]
[1719414592115,7.2806,137.35,137.34,6.3325]
[1719414592297,26.74,137.35,137.32,0.8657344]
[1719414592489,26.74,137.35,137.32,8.1478344]
[1719414592810,26.74,137.35,137.32,0.8657344]
[1719414593114,26.74,137.35,137.32,8.1478344]
[1719414593300,22.54173864,137.39,137.32,0.8657344]
[1719414593502,26.74,137.35,137.32,0.8657344]
[1719414593810,7.2807,137.35,137.32,0.8657344]
[1719414594104,7.2803,137.36,137.32,0.8657344]
[1719414594298,7.2797,137.37,137.32,0.8657344]
[1719414594613,26.74,137.35,137.32,0.8657344]
[1719414594998,7.2801,137.36,137.32,0.8657344]
[1719414598111,0.17,137.37,137.32,0.8657344]
[1719414598322,7.2808,137.35,137.32,0.8657344]
[1719414598813,4.17463864,137.36,137.32,0.8657344]
[1719414599015,26.74,137.35,137.33,25.4855]
[1719414599394,4.17463864,137.39,137.33,18.2038]
[1719414599713,7.2777,137.41,137.35,7.2803]
[1719414599917,5.81343926,137.42,137.35,18.2014]
[1719414600218,4.17463864,137.42,137.35,18.2014]
[1719414600888,26.74,137.37,137.34,7.281]
[1719414601816,26.74,137.37,137.33,7.2815]
[1719414602333,7.2804,137.36,137.32,0.8657344]
[1719414602627,26.74,137.33,137.32,0.8657344]
[1719414602995,4.17463864,137.38,137.32,0.8657344]
[1719414603216,4.17463864,137.38,137.36,7.2798]
[1719414603395,26.74,137.4,137.37,7.2794]
[1719414603590,30.0,137.38,137.37,7.2794]
[1719414603806,30.0,137.38,137.37,25.4784]
[1719414604094,260.6,137.44,137.4,18.1941]
[1719414604422,260.6,137.44,137.36,42.9963]
[1719414604423,11.44793864,137.49,137.43,22.1764]
[1719414604600,26.74,137.47,137.43,22.1764]
[1719414604924,4.17463864,137.49,137.44,7.2754]
[1719414605307,7.2743,137.47,137.43,22.1764]
[1719414605617,7.2749,137.46,137.43,22.1764]
[1719414605795,4.17463864,137.49,137.43,22.1764]
[1719414606294,4.17463864,137.49,137.44,25.4652]
[1719414606494,26.74,137.49,137.44,25.4652]
[1719414606711,26.74,137.49,137.45,7.2753]
[1719414606918,277.98127997,137.52,137.47,7.2742]
[1719414607101,17.38127997,137.52,137.46,25.4611]
[1719414607910,7.2722,137.51,137.46,25.4611]
[1719414608298,7.2722,137.51,137.46,18.1867]
[1719414608808,4.17463864,137.52,137.43,40.3664]
[1719414609119,18.1811,137.51,137.43,22.1764]
[1719414609326,105.93660014,137.53,137.43,22.1764]
[1719414609525,7.76604283,137.51,137.43,22.1764]
[1719414609708,0.17,137.5,137.43,22.1764]
[1719414609910,7.2727,137.5,137.44,7.2757]
[1719414610215,7.2733,137.49,137.43,22.1764]
[1719414610428,7.2733,137.49,137.43,29.4526]
[1719414610626,7.274,137.48,137.43,22.1764]
[1719414610796,0.17,137.49,137.4,13.4839]
[1719414610996,7.2745,137.47,137.41,7.2774]
[1719414611197,0.34,137.5,137.4,6.2064]
[1719414611198,0.17,137.46,137.4,6.2064]
[1719414611508,7.2775,137.41,137.36,24.5111]
[1719414611711,7.2781,137.4,137.36,6.3118]
[1719414612632,7.2776,137.41,137.36,6.3118]
[1719414612961,7.2771,137.42,137.36,13.5918]
[1719414613632,7.2771,137.42,137.37,7.2795]
[1719414613799,7.4462,137.44,137.37,18.1987]
[1719414613999,7.4462,137.44,137.38,7.2789]
[1719414614198,7.2764,137.43,137.37,18.1987]
[1719414614609,7.2752,137.46,137.4,7.2779]
[1719414614833,7.2735,137.49,137.41,18.1927]
[1719414615033,18.72383864,137.5,137.41,15.3587]
[1719414615214,11.45103864,137.5,137.44,13.815]
[1719414615519,3.59140419,137.51,137.45,18.188]
[1719414615720,3.59140419,137.51,137.46,7.2747]
[1719414615927,10.86380419,137.51,137.45,25.4631]
[1719414616425,7.2727,137.5,137.45,25.4631]
[1719414616944,7.2712,137.53,137.47,7.2739]
[1719414617144,7.2717,137.52,137.45,18.188]
[1719414617319,11.44533864,137.54,137.48,7.2737]
[1719414617515,7.2727,137.5,137.44,32.0037]
[1719414617720,7.2734,137.49,137.44,6.5392]
[1719414618046,53.42,137.5,137.44,6.5392]
[1719414618230,7.2746,137.47,137.41,40.8287]
[1719414618439,7.2746,137.47,137.41,46.9077]
[1719414618616,7.2748,137.46,137.41,46.9077]
[1719414618940,7.2748,137.46,137.41,21.4377]
[1719414618941,7.275,137.46,137.41,21.4377]
[1719414619138,18.1848,137.48,137.39,7.2784]
[1719414619345,18.1848,137.48,137.38,31.694]
[1719414619346,7.276,137.44,137.38,31.694]
[1719414619543,7.276,137.44,137.39,7.2785]
[1719414620343,7.2755,137.45,137.39,7.2785]
[1719414620510,7.277,137.42,137.38,6.2182]
[1719414620714,0.34,137.47,137.38,6.2182]
[1719414621255,7.2743,137.47,137.41,7.2771]
[1719414621425,7.2749,137.46,137.41,7.2771]
[1719414621611,7.2749,137.46,137.4,7.2778]
[1719414621945,7.2749,137.46,137.41,7.2774]
[1719414622332,4.17463864,137.48,137.42,7.2766]
[1719414622519,11.44873864,137.48,137.42,7.2766]
[1719414622933,4.17463864,137.48,137.41,25.4701]
[1719414623247,4.17463864,137.48,137.42,7.2767]
[1719414623547,7.2744,137.47,137.41,25.47]
[1719414623919,7.2744,137.47,137.42,7.2769]
[1719414624330,7.2744,137.47,137.41,25.4701]
[1719414626345,7.2744,137.47,137.41,18.1928]
[1719414627145,7.2744,137.47,137.42,7.2768]
[1719414627324,7.2744,137.47,137.41,25.4699]
[1719414627733,11.44843864,137.48,137.41,18.1928]
[1719414627936,4.17463864,137.48,137.41,18.1928]
[1719414628444,7.2743,137.47,137.42,7.2766]
[1719414629236,7.2743,137.47,137.41,25.47]
[1719414629735,4.17463864,137.48,137.44,7.2754]
[1719414629936,23.20145562,137.49,137.43,18.1906]
[1719414629937,22.9542,137.49,137.43,18.1906]
[1719414630237,13.17693129,137.51,137.45,18.1883]
[1719414630427,7.2723,137.51,137.45,18.1883]
[1719414630626,7.2727,137.5,137.45,25.4634]
[1719414630829,7.2723,137.51,137.45,25.4634]
[1719414631039,14.79046467,137.52,137.46,7.2747]
[1719414631239,14.79046467,137.52,137.45,24.7856]
[1719414631543,7.2723,137.51,137.46,7.2745]
[1719414631750,7.2723,137.51,137.45,32.0607]
[1719414631947,22.97334283,137.53,137.43,15.8088]
[1719414632154,7.2729,137.5,137.44,7.2755]
[1719414632334,22.97334283,137.53,137.44,7.2755]
[1719414632535,7.2739,137.48,137.43,15.8088]
[1719414632742,7.2754,137.45,137.4,7.2778]
[1719414632933,7.2755,137.45,137.4,7.2779]
[1719414633432,15.7038,137.47,137.39,15.8384]
[1719414633625,0.17,137.46,137.39,15.8384]
[1719414633821,0.17,137.46,137.34,22.2958]
[1719414633822,7.2792,137.38,137.34,22.2958]
[1719414634031,18.1928,137.42,137.34,6.6222]
[1719414634234,0.34,137.41,137.32,8.1475344]
[1719414634529,7.2774,137.41,137.35,25.4812]
[1719414634729,7.277,137.42,137.35,25.4812]
[1719414635038,7.2781,137.4,137.35,18.2006]
[1719414635233,0.17,137.42,137.33,7.2816]
[1719414635437,0.34,137.42,137.32,19.0712344]
[1719414635755,7.2775,137.41,137.35,7.2804]
[1719414636139,7.2781,137.4,137.34,25.4832]
[1719414637052,7.2775,137.41,137.35,7.2806]
[1719414637253,0.17,137.42,137.36,7.2799]
[1719414637449,7.4473,137.42,137.35,7.2806]
[1719414637750,7.4473,137.42,137.36,7.28]
[1719414637953,7.4473,137.42,137.34,18.2022]
[1719414637954,7.2781,137.4,137.34,18.2022]
[1719414638130,7.2785,137.4,137.34,18.2022]
[1719414638335,0.17,137.42,137.34,18.2022]
[1719414638645,0.34,137.42,137.34,18.2022]
[1719414638948,0.34,137.42,137.32,8.1479344]
[1719414639153,0.34,137.42,137.33,7.2815]
[1719414639564,7.2786,137.39,137.33,7.2815]
[1719414639854,7.2796,137.37,137.32,0.8657344]
[1719414640041,15.4368,137.4,137.32,0.8657344]
[1719414640241,7.2797,137.37,137.32,0.8657344]
[1719414640437,0.17,137.39,137.32,0.8657344]
[1719414640758,7.2802,137.36,137.32,0.8657344]
[1719414640963,7.6197,137.37,137.32,0.8657344]
[1719414641145,0.17,137.39,137.32,19.0708344]
[1719414641343,7.2794,137.38,137.32,26.3529344]
[1719414641860,0.17,137.39,137.32,26.3529344]
[1719414641861,0.17,137.37,137.32,0.8657344]
[1719414642047,0.17,137.39,137.32,0.8657344]
[1719414642254,7.2807,137.35,137.32,0.8657344]
[1719414642567,7.2812,137.34,137.32,0.8657344]
[1719414642748,7.2808,137.35,137.32,0.8657344]
[1719414643144,18.1981,137.38,137.32,0.8657344]
[1719414643145,7.2817,137.33,137.32,0.8657344]
[1719414643347,7.2813,137.34,137.32,0.8657344]
[1719414643860,7.2808,137.35,137.32,0.8657344]
[1719414644360,7.2812,137.34,137.32,0.8657344]
[1719414644653,7.2807,137.35,137.32,0.8657344]
[1719414645061,7.2812,137.34,137.32,0.8657344]
[1719414646161,7.2817,137.33,137.32,0.8657344]
[1719414646867,7.2813,137.34,137.32,0.8657344]
[1719414647240,18.5408,137.36,137.32,0.8657344]
[1719414647241,4.51463864,137.36,137.32,0.8657344]
[1719414647440,7.2807,137.35,137.32,0.8657344]
[1719414647639,4.51463864,137.36,137.32,0.8657344]
[1719414647640,7.2812,137.34,137.32,0.8657344]
[1719414647856,7.281,137.35,137.32,0.8657344]
[1719414648944,7.2806,137.35,137.32,0.8657344]
[1719414649344,7.2815,137.34,137.32,0.8657344]
[1719414649946,4.51463864,137.36,137.32,0.8657344]
[1719414650161,11.79493864,137.36,137.32,0.8657344]
[1719414650355,4.51463864,137.36,137.32,0.8657344]
[1719414650564,7.2808,137.35,137.32,0.8657344]
[1719414651065,4.51463864,137.36,137.32,0.8657344]
[1719414651361,7.2815,137.34,137.32,0.8657344]
[1719414651568,7.2808,137.35,137.32,0.8657344]
[1719414652368,17.66365134,137.36,137.32,0.8657344]
[1719414652548,7.2816,137.34,137.32,0.8657344]
[1719414652749,7.2808,137.35,137.32,0.8657344]
[1719414652960,10.38355134,137.36,137.32,0.8657344]
[1719414653264,10.21355134,137.36,137.32,0.8657344]
[1719414653439,17.49375134,137.36,137.32,0.8657344]
[1719414653640,7.2806,137.35,137.32,0.8657344]
[1719414654143,7.2812,137.34,137.32,0.8657344]
[1719414654543,10.38355134,137.36,137.19,21.86]
[1719414654544,115.8218,137.3,137.19,36.4454]
[1719414654751,7.2855,137.26,137.19,25.5103]
[1719414654944,7.286,137.25,137.19,25.5103]
[1719414655154,1.52975669,137.25,137.21,18.2198]
[1719414655368,15.8218,137.3,137.19,21.9451]
[1719414655369,7.2837,137.3,137.19,21.9451]
[1719414655668,7.2827,137.32,137.25,7.2858]
[1719414655967,34.06,137.34,137.23,18.2168]
[1719414656169,34.06,137.34,137.2,36.4428]
[1719414656170,19.3864,137.34,137.2,36.4428]
[1719414656359,26.6681,137.34,137.27,7.2847]
[1719414656671,7.2843,137.29,137.23,24.4857]
[1719414656874,7.2843,137.29,137.23,31.7724]
[1719414657179,7.2834,137.3,137.23,31.7724]
[1719414657354,37.24807071,137.34,137.23,24.4857]
[1719414657666,19.04457071,137.34,137.25,25.4991]
[1719414657993,7.2826,137.32,137.25,25.4991]
[1719414658870,7.2829,137.31,137.25,25.4991]
[1719414659071,19.04457071,137.34,137.25,25.4991]
[1719414659072,7.2822,137.32,137.26,7.2852]
[1719414659368,7.50270779,137.37,137.25,36.5981]
[1719414659544,3.08847071,137.38,137.3,7.2829]
[1719414659750,18.1957,137.4,137.31,13.6425]
[1719414659979,7.2791,137.38,137.32,7.2822]
[1719414660344,30.37945536,137.4,137.31,6.3599]
[1719414660654,30.37945536,137.4,137.27,6.3326]
[1719414660655,18.2013,137.36,137.27,6.3326]
[1719414660858,18.204,137.34,137.23,6.3535]
[1719414661167,7.2829,137.31,137.24,7.286]
[1719414661367,7.2844,137.28,137.23,24.5704]
[1719414661568,7.2839,137.29,137.23,31.8574]
[1719414661867,7.2845,137.28,137.23,24.5704]
[1719414662069,7.285,137.27,137.23,6.3535]
[1719414662860,7.2844,137.28,137.23,6.3535]
[1719414663855,7.2858,137.26,137.2,41.0181]
[1719414664351,7.286,137.25,137.2,24.5357]
[1719414664553,18.2088,137.3,137.2,24.5357]
[1719414664768,7.285,137.27,137.2,24.5357]
[1719414665071,13.21804004,137.29,137.23,7.2869]
[1719414665268,7.2861,137.25,137.2,6.3146]
[1719414665498,7.2858,137.26,137.2,13.6031]
[1719414665766,7.2866,137.24,137.2,6.3146]
[1719414665977,24.14424004,137.29,137.18,0.8657344]
[1719414665978,18.383,137.27,137.18,0.8657344]
[1719414666273,7.2889,137.2,137.18,0.8657344]
[1719414666465,7.2891,137.19,137.18,0.8657344]
[1719414666664,53.63,137.25,137.18,0.8657344]
[1719414666869,7.4569,137.24,137.18,8.1553344]
[1719414667054,7.2873,137.23,137.18,0.8657344]
[1719414667255,0.17,137.24,137.18,0.8657344]
[1719414667451,0.34,137.24,137.18,0.8657344]
[1719414667675,59.39374004,137.25,137.18,0.8657344]
[1719414667973,7.4565,137.24,137.18,0.8657344]
[1719414668178,7.2872,137.23,137.18,0.8657344]
[1719414668375,0.17,137.24,137.18,0.8657344]
[1719414668578,7.2891,137.19,137.18,0.8657344]
[1719414669076,7.4591,137.19,137.18,0.8657344]
[1719414669284,3.4303,137.18,137.05,19.1058344]
[1719414669472,3.4303,137.18,137.05,0.8657344]
[1719414669473,18.2292,137.15,137.05,0.8657344]
[1719414669671,7.2944,137.09,137.05,0.8657344]
[1719414669977,53.63,137.07,137.05,0.8657344]
[1719414670184,3.4303,137.08,136.98,18.2502]
[1719414670185,7.2968,137.05,136.98,18.2502]
[1719414670496,30.0,137.04,136.94,18.255]
[1719414670693,30.0,137.04,136.94,25.557]
[1719414670858,30.0,137.04,136.94,18.255]
[1719414671065,7.2984,137.02,136.94,18.255]
[1719414671264,30.0,137.04,136.89,18.2622]
[1719414671577,30.0,137.04,136.93,18.2564]
[1719414671779,30.0,137.04,136.83,6.4063]
[1719414671780,130.0,137.04,136.83,6.4063]
[1719414672076,30.0,137.01,136.87,18.2643]
[1719414672457,7.3018,136.96,136.84,7.35090186]
[1719414672682,20.0,136.95,136.84,7.35090186]
[1719414672879,20.0,136.95,136.84,0.04330186]
[1719414673064,30.0,136.94,136.84,0.04330186]
[1719414673264,7.3033,136.93,136.84,0.04330186]
[1719414673469,100.0,137.0,136.84,0.04330186]
[1719414673777,100.0,137.02,136.87,7.306]
[1719414673975,0.17,136.99,136.87,7.306]
[1719414674168,7.3001,136.99,136.89,6.399]
[1719414674365,7.51787269,137.01,136.9,18.2601]
[1719414674682,100.0,137.14,136.95,18.2547]
[1719414674683,7.2942,137.1,136.95,18.2547]
[1719414674875,100.0,137.14,136.95,18.2547]
[1719414674876,100.0,137.14,137.0,7.2987]
[1719414675181,7.52386983,137.09,137.03,7.2973]
[1719414675386,6.02690438,137.1,136.97,7.3005]
[1719414675565,7.2979,137.03,136.94,18.2555]
[1719414675878,7.2967,137.05,136.94,7.3021]
[1719414676087,100.0,137.07,136.93,18.2569]
[1719414676305,7.2986,137.02,136.93,18.2569]
[1719414676464,100.0,137.05,136.88,18.2636]
[1719414676664,7.2984,137.02,136.93,7.3026]
[1719414676868,7.54051651,137.08,136.93,6.034]
[1719414677061,7.2956,137.07,136.97,7.3006]
[1719414677386,7.54051651,137.08,136.96,18.2532]
[1719414677684,107.54051651,137.08,136.96,18.2532]
[1719414677901,7.2982,137.02,136.91,18.2591]
[1719414678188,7.2975,137.04,136.94,7.3021]
[1719414678363,100.0,137.06,136.86,6.2986]
[1719414678564,7.54051651,137.08,136.98,7.3002]
[1719414678787,20.0,137.07,136.96,18.2526]
[1719414678990,7.54051651,137.08,136.99,7.2993]
[1719414679169,7.54051651,137.08,137.02,7.2981]
[1719414679364,7.54051651,137.08,137.04,7.297]
[1719414679593,100.0,137.18,137.05,7.2961]
[1719414679765,7.2922,137.14,136.98,36.4998]
[1719414679974,7.58832176,137.15,137.07,18.2376]
[1719414680265,7.2911,137.16,137.07,18.2376]
[1719414680517,7.2913,137.15,137.07,18.2376]
[1719414680789,14.87803432,137.18,137.1,7.2939]
[1719414681087,14.87803432,137.18,137.07,18.2376]
[1719414681088,7.2897,137.18,137.09,7.2939]